[Event "Biel Festival Masters Blitz 2024"]
[White "Mishra,Abhimanyu"]
[Black "Martirosyan,Haik M."]
[Site "Biel"]
[Round "4.1"]
[Annotator "TA"]
[Result "0-1"]
[Date "2024.07.21"]
[WhiteElo "2627"]
[BlackElo "2662"]
[PlyCount "116"]
[TimeControl "180+2"]

{[%evp 14,116,39,27,35,34,41,29,41,0,0,0,8,19,20,0,62,35,43,31,11,14,19,23,14,20,17,0,27,0,0,0,0,0,-4,-15,0,0,0,-11,63,-34,29,23,72,0,0,0,0,-8,-13,-9,-20,-10,0,-4,-15,-5,-8,-73,-75,-96,-106,-216,-214,-208,-92,-92,0,-210,-216,-212,-222,-212,-212,-399,-399,-560,-414,-820,-703,-699,-690,-727,-720,-1295,-1340,-1295,-1125,-5031,-4718,-5522,-5143,-10528,-5070,-29981,-29982,-29982,-29983,-29980,-29981,-29981,-29982,-29992,-29984]} 1. e4 {[%emt 0:0:1]} e5 {[%emt 0:0:0]} 2. Nf3 {[%emt 0:0:1]} Nc6 {[%emt 0:0:2]} 3. Bc4 {[%emt 0:0:1]} Nf6 {[%emt 0:0:1]} 4. d3 {[%emt 0:0:0]} Be7 {[%emt 0:0:0]} 5. O-O {[%emt 0:0:2]} O-O {[%emt 0:0:2]} 6. Re1 {[%emt 0:0:0]} d6 {[%emt 0:0:1]} 7. a4 {[%emt 0:0:5]} Be6 {[%emt 0:0:2]} 8. Nbd2 {[%emt 0:0:6]} h6 {[%emt 0:0:4]} 9. h3 {[%emt 0:0:5]} Nd7 {[%emt 0:0:29]} 10. c3 {[%emt 0:0:12]} a5 {[%emt 0:0:2] White has an edge.} 11. Bxe6 {[%emt 0:0:6]} fxe6 {[%emt 0:0:1]} 12. Nf1 {[%emt 0:0:5]} Kh8 {[%emt 0:0:11]} 13. Be3 {[%emt 0:0:11] Black should prevent Qb3.} d5 {[%emt 0:0:2]} 14. Ng3 {[%emt 0:0:14]} b6 {[%emt 0:0:7]} (14... Qe8 $11 )15. d4 {[%emt 0:0:33]} exd4 {[%emt 0:0:3]} 16. Nxd4 {[%emt 0:0:2]} Nxd4 {[%emt 0:0:2]} 17. Bxd4 {[%emt 0:0:2]} c5 {[%emt 0:0:22]} 18. Be3 {[%emt 0:0:30]} (18. Bxg7+ {seems wilder.} Kxg7 19. exd5 e5 20. f4 )Nf6 {[%emt 0:0:9]} 19. exd5 {[%emt 0:0:9]} exd5 {[%emt 0:0:5]} 20. Qd2 {[%emt 0:0:13]} (20. Nf5 {is interesting.} Bd6 21. Qd3 Ne4 22. Nxd6 Qxd6 23. Rad1 )Rf7 {[%emt 0:0:4]} 21. Rad1 {[%emt 0:0:3]} Qd7 {[%emt 0:0:5]} 22. Bf4 {[%emt 0:0:3]} Qxa4 {[%emt 0:0:7]} 23. Nf5 {[%emt 0:0:18]} Bf8 {[%emt 0:0:4]} 24. Be5 {[%emt 0:0:1]} Rd8 {[%emt 0:0:1]} 25. Qd3 {[%emt 0:0:15][%cal Of5h6]} Qd7 {[%emt 0:0:6]} 26. Nh4 {[%emt 0:0:5]} Kg8 {[%emt 0:0:8]} (26... Re8 $11 )27. Ng6 {[%emt 0:0:3]} (27. Qg6 $1 $14 Nh7 28. Qxb6 )Nh7 {[%emt 0:0:11]} (27... b5 $15 )28. Bg3 $11 {[%emt 0:0:6] [#] Ne5 is the strong threat.} Rf6 {[%emt 0:0:11]} (28... Qf5 $11 )29. Nf4 {[%emt 0:0:10]} (29. Ne5 $16 Qe8 30. Bh4 )d4 {[%emt 0:0:12]} 30. cxd4 {[%emt 0:0:5]} cxd4 {[%emt 0:0:1]} 31. Qc4+ {[%emt 0:0:6]} Qf7 {[%emt 0:0:2]} 32. Rxd4 {[%emt 0:0:2] [#] aiming for Qxf7+.} Qxc4 {[%emt 0:0:23]} 33. Rxc4 {[%emt 0:0:1]} Ng5 {[%emt 0:0:8]} 34. Nh5 {[%emt 0:0:6]} Rf7 {[%emt 0:0:5]} 35. h4 {[%emt 0:0:3]} Nh7 {[%emt 0:0:1]} 36. Rc7 {[%emt 0:0:1]} (36. f3 $11 )Bc5 {[%emt 0:0:2]} 37. Rxf7 {[%emt 0:0:2]} Kxf7 {[%emt 0:0:1]} 38. Be5 {[%emt 0:0:4]} (38. Kf1 $17 )Rd2 $19 {[%emt 0:0:5]} 39. Rf1 {[%emt 0:0:3]} Rd5 {[%emt 0:0:1]} (39... Nf6 $19 {and Black stays clearly on top.} 40. Bc3 Rc2 41. Nxf6 gxf6 )40. Re1 $17 {[%emt 0:0:2]} Rd2 {[%emt 0:0:9]} (40... Bd4 $17 41. Bxd4 Rxd4 (41... Rxh5 42. Bxb6 Nf6 43. Bc7 $16 ))41. Rf1 $1 $19 {[%emt 0:0:1] White is on the road to losing.} Nf6 {[%emt 0:0:7]} 42. Nxf6 {[%emt 0:0:3]} gxf6 {[%emt 0:0:1][%mdl 4096] Endgame. KRB-KRB} 43. Bc3 {[%emt 0:0:1]} Rc2 {[%emt 0:0:0]} 44. g4 $2 {[%emt 0:0:4]} (44. Kh2 )a4 {[%emt 0:0:1] And now ...a3 would win.} 45. Ra1 {[%emt 0:0:2]} (45. Kg2 $142 )b5 {[%emt 0:0:4]} 46. Ba5 {[%emt 0:0:3]} (46. Kg2 $142 )Rxf2 {[%emt 0:0:3]} 47. Bb4 {[%emt 0:0:1]} Ba7 {[%emt 0:0:8]} (47... Bxb4 48. Kxf2 Bc5+ 49. Ke2 $11 )48. Kh1 {[%emt 0:0:1]} Rxb2 {[%emt 0:0:1]} 49. Ba5 {[%emt 0:0:2]} Rb3 {[%emt 0:0:5] White must now prevent ...Bd4.} 50. Rd1 {[%emt 0:0:2]} Be3 {[%emt 0:0:2]} 51. Rd7+ {[%emt 0:0:3]} Ke6 {[%emt 0:0:1]} 52. Rd8 {[%emt 0:0:3]} a3 {[%emt 0:0:1]} 53. Re8+ {[%emt 0:0:2]} Kd5 {[%emt 0:0:2] ( -> ...a2)} 54. Bd8 {[%emt 0:0:1]} Bd4 {[%emt 0:0:1] Black mates.} 55. Be7 {[%emt 0:0:3]} Rb1+ {[%emt 0:0:5]} 56. Kg2 {[%emt 0:0:1]} a2 {[%emt 0:0:1]} 57. Rd8+ {[%emt 0:0:1]} Ke6 {[%emt 0:0:2]} 58. Rxd4 {[%emt 0:0:7]} Ke5 {[%emt 0:0:4] Weighted Error Value: White=0.72/Black=0.26 (precise) .  Mistake:       	White=7     	Black=6      Inaccurate:     	White=3     	Black=1      OK:         	White=9     	Black=14     Best:        	White=1     	Black=2      Strong:       	White=1     	---} ({Not} 58... a1=B 59. Rb4 Rb2+ 60. Rxb2 Bxb2 61. Bf8 $17 )0-1

[Event "Biel Festival Masters Blitz 2024"]
[White "Keymer,Vincent"]
[Black "Praggnanandhaa R"]
[Site "Biel"]
[Round "4.2"]
[Annotator "TA"]
[Result "0-1"]
[Date "2024.07.21"]
[WhiteElo "2721"]
[BlackElo "2747"]
[PlyCount "136"]
[TimeControl "180+2"]

{[%evp 53,136,-127,-110,-109,-108,-156,-152,-158,-144,-162,-88,-221,-182,-223,-133,-141,-94,-149,-165,-161,-160,-139,-163,-227,-220,-261,-209,-253,0,-254,-244,-262,-253,-248,-180,-228,-59,-201,-130,-115,-63,-63,0,0,-6,-8,-4,-74,-74,-74,-74,-105,-105,-103,-84,-124,-84,-107,-79,-76,-29,-37,-8,-130,-135,-133,-142,-130,-74,-66,-53,-45,-47,-62,0,-24,-22,-22,-22,-208,-229,-29973,-29976,-29976,-29977]} 1. Nf3 {[%emt 0:0:2]} Nf6 {[%emt 0:0:1]} 2. c4 {[%emt 0:0:1]} e6 {[%emt 0:0:1]} 3. Nc3 {[%emt 0:0:1]} d5 {[%emt 0:0:1]} 4. e3 {[%emt 0:0:0]} Bd6 {[%emt 0:0:2]} 5. b3 {[%emt 0:0:4]} O-O {[%emt 0:0:2]} 6. Bb2 {[%emt 0:0:1]} Re8 {[%emt 0:0:1]} 7. Nb5 {[%emt 0:0:1]} Be7 {[%emt 0:0:1]} 8. Be5 {[%emt 0:0:3]} Na6 {[%emt 0:0:1]} 9. Be2 {[%emt 0:0:1]} Ne4 {[%emt 0:0:1]} 10. Qc2 {[%emt 0:0:12]} c6 {[%emt 0:0:19]} 11. Nc3 {[%emt 0:0:1]} f6 {[%emt 0:0:1]} 12. Bg3 {[%emt 0:0:6]} Nb4 {[%emt 0:0:14]} 13. Qb1 {[%emt 0:0:9]} e5 {[%emt 0:0:1]} 14. cxd5 {[%emt 0:0:33]} Nxc3 {[%emt 0:0:1]} 15. dxc3 {[%emt 0:0:2]} Nxd5 {[%emt 0:0:1]} 16. O-O {[%emt 0:0:7]} Nxc3 {[%emt 0:0:25]} 17. Bc4+ {[%emt 0:0:1]} Kh8 {[%emt 0:0:1]} 18. Qc2 {[%emt 0:0:20]} Nd5 {[%emt 0:0:18]} 19. Rfd1 {[%emt 0:0:48]} Qb6 {[%emt 0:0:45]} 20. Rac1 {[%emt 0:0:41]} Be6 {[%emt 0:0:10]} 21. Qe4 {[%emt 0:0:3]} Kg8 {[%emt 0:0:25]} 22. Nh4 {[%emt 0:0:10]} Bf7 {[%emt 0:0:14]} 23. Qg4 {[%emt 0:0:1]} Bf8 {[%emt 0:0:13]} 24. e4 {[%emt 0:0:7]} Ne7 {[%emt 0:0:8]} 25. Bxf7+ {[%emt 0:0:5]} Kxf7 {[%emt 0:0:1]} 26. Kh1 {[%emt 0:0:6]} Rad8 {[%emt 0:0:4]} 27. f4 {[%emt 0:0:1]} exf4 $1 {[%emt 0:0:5]} 28. Bxf4 {[%emt 0:0:1]} Ng6 {[%emt 0:0:3]} 29. Qh5 {[%emt 0:0:5]} (29. Nxg6 $142 hxg6 30. e5 )Rxd1+ {[%emt 0:0:9]} (29... Rxe4 30. Qxh7 Rxd1+ 31. Rxd1 $11 )30. Rxd1 {[%emt 0:0:1]} Rd8 {[%emt 0:0:3]} ({Inferior is} 30... Rxe4 31. Qxh7 $11 )31. Rg1 {[%emt 0:0:5]} Qb5 {[%emt 0:0:7]} (31... Bc5 $19 32. Ra1 Qb5 )32. Nf5 {[%emt 0:0:3]} (32. e5 $17 {was necessary.} )Kg8 {[%emt 0:0:1]} 33. Bg3 {[%emt 0:0:2]} Qd3 {[%emt 0:0:1]} (33... Rd2 $19 34. h4 Rxa2 )34. Qg4 $17 {[%emt 0:0:1]} Re8 {[%emt 0:0:3]} (34... Qd7 $142 35. h4 Kh8 )35. Re1 {[%emt 0:0:3]} ({White should play} 35. e5 )Bb4 $17 {[%emt 0:0:1]} 36. Rd1 {[%emt 0:0:2]} Qxe4 {[%emt 0:0:3]} 37. Qxe4 {[%emt 0:0:1]} Rxe4 {[%emt 0:0:0]} 38. Rd7 {[%emt 0:0:3]} (38. Rd8+ $142 Bf8 (38... Kf7 $2 39. Rb8 $17 )39. Nd6 )Ne7 $19 {[%emt 0:0:4]} 39. Nd4 {[%emt 0:0:3]} Nd5 {[%emt 0:0:2]} 40. Nf5 {[%emt 0:0:2]} Ne7 {[%emt 0:0:1]} 41. Nd4 $1 {[%emt 0:0:1]} h5 {[%emt 0:0:4]} 42. Nf3 {[%emt 0:0:0]} Nf5 {[%emt 0:0:3]} 43. Rxb7 {[%emt 0:0:2]} Bc5 {[%emt 0:0:0]} 44. Rc7 {[%emt 0:0:2]} (44. Bb8 $142 )h4 $2 {[%emt 0:0:3]} (44... Re2 $19 45. Rxc6 Nxg3+ 46. hxg3 Bf2 )45. Be1 {[%emt 0:0:2]} (45. Rxc6 $15 Bd4 (45... Nxg3+ 46. hxg3 Bf2 47. gxh4 $11 )46. Be1 )Bb6 {[%emt 0:0:3]} 46. Rxc6 {[%emt 0:0:1]} Nd4 {[%emt 0:0:0]} ({Black should try} 46... Re2 $17 {aiming for ...h3.} 47. h3 Rxa2 48. Nxh4 Nd4 49. Rc8+ Kh7 )47. Rc1 $15 {[%emt 0:0:1] [#]} h3 {[%emt 0:0:4]} (47... Kf7 $1 $15 )48. Nxd4 $11 {[%emt 0:0:2]} hxg2+ {[%emt 0:0:1]} 49. Kxg2 {[%emt 0:0:1]} Bxd4 {[%emt 0:0:1]} 50. Kf3 {[%emt 0:0:4]} (50. Rd1 $11 )Re3+ $17 {[%emt 0:0:0]} 51. Kg4 {[%emt 0:0:5]} Re2 {[%emt 0:0:1]} 52. h4 {[%emt 0:0:2]} Rxa2 {[%emt 0:0:5]} 53. Bg3 {[%emt 0:0:3]} Bb6 {[%emt 0:0:4]} 54. h5 {[%emt 0:0:2]} Kh7 {[%emt 0:0:0]} 55. Rd1 {[%emt 0:0:1]} Re2 {[%emt 0:0:3]} 56. Rd7 {[%emt 0:0:4]} Re4+ {[%emt 0:0:2]} (56... Kh6 $17 )57. Kf5 $1 $11 {[%emt 0:0:1]} Rb4 {[%emt 0:0:1]} 58. Rd3 {[%emt 0:0:2]} (58. Bf4 $1 $11 )Rb5+ $17 {[%emt 0:0:1]} 59. Kg4 {[%emt 0:0:0]} Rg5+ {[%emt 0:0:4]} 60. Kh4 {[%emt 0:0:1]} Rf5 {[%emt 0:0:2]} (60... a5 $142 61. Be1 Bc5 )61. Kg4 $17 {[%emt 0:0:1]} Rb5 {[%emt 0:0:0]} 62. Bf4 {[%emt 0:0:1]} Rb4 {[%emt 0:0:1]} 63. Kf5 $1 {[%emt 0:0:1]} Rb5+ {[%emt 0:0:2]} 64. Kg4 {[%emt 0:0:1]} Ba5 {[%emt 0:0:6]} 65. Rd7 {[%emt 0:0:2]} f5+ {[%emt 0:0:3]} 66. Kg5 $2 {[%emt 0:0:3] [#]} (66. Kf3 $11 )Bc3 $1 $19 {[%emt 0:0:0]} 67. h6 $2 {[%emt 0:0:3]} (67. Kh4 $19 )Bf6+ {[%emt 0:0:2]} ({Worse is} 67... Rxb3 68. Rxa7 Bd4 69. Rd7 $11 )68. Kh5 {[%emt 0:0:1]} Rxb3 {[%emt 0:0:0]} 0-1

[Event "Biel Festival Masters Blitz 2024"]
[White "Le,Quang Liem"]
[Black "Shankland,Sam"]
[Site "Biel"]
[Round "4.3"]
[Annotator "TA"]
[Result "1-0"]
[Date "2024.07.21"]
[WhiteElo "2731"]
[BlackElo "2683"]
[PlyCount "145"]
[TimeControl "180+2"]

{[%evp 55,145,61,70,63,58,60,97,83,101,108,104,90,111,113,112,112,114,112,130,124,121,107,108,108,97,89,99,25,93,45,57,34,34,34,58,39,79,76,145,81,83,73,197,195,168,62,266,232,164,101,112,109,125,122,131,105,125,125,124,125,168,122,2557,1716,5050,5050,5875,5620,5050,2400,5576,5576,29962,29958,29966,29967,29979,29980,29981,29982,29983,29984,29984,29985,29985,29986,29986,29984,29984,29985,29985,29986]} 1. d4 {[%emt 0:0:1]} Nf6 {[%emt 0:0:0]} 2. c4 {[%emt 0:0:1]} g6 {[%emt 0:0:1]} 3. Nc3 {[%emt 0:0:1]} Bg7 {[%emt 0:0:1]} 4. e4 {[%emt 0:0:1]} d6 {[%emt 0:0:0]} 5. f3 {[%emt 0:0:1]} O-O {[%emt 0:0:3]} 6. Nge2 {[%emt 0:0:2]} Nbd7 {[%emt 0:0:3] 6...a6 is setting a new trend.} 7. Be3 {[%emt 0:0:11]} a6 {[%emt 0:0:2] E81: King's Indian: Sämisch: 6th move deviations (including 6 Be3 c6).} 8. Qd2 {[%emt 0:0:11]} b5 {[%emt 0:0:2]} 9. cxb5 {[%emt 0:0:11]} axb5 {[%emt 0:0:1]} 10. Nxb5 {[%emt 0:0:1]} c6 {[%emt 0:0:0]} 11. Nbc3 {[%emt 0:0:7]} e5 {[%emt 0:0:1]} 12. Ng3 {[%emt 0:0:10]} d5 {[%emt 0:0:18]} 13. Be2 {[%emt 0:0:24]} dxe4 $146 {[%emt 0:0:39]} ({Predecessor:} 13... h5 14. exd5 Nxd5 15. Nxd5 cxd5 16. O-O h4 17. Nh1 Re8 18. Bb5 Qb6 19. Bxd7 exd4 20. Bxe8 dxe3 21. Qxd5 {0-1 Omelja,A (2515)-Demchenko,A (2654) Titled Tuesday intern op 31st May Early blitz 2022 (7)} )14. Ngxe4 {[%emt 0:0:2]} Nd5 15. Nxd5 {[%emt 0:0:8]} cxd5 {[%emt 0:0:21]} 16. Nc3 {[%emt 0:0:1]} Rb8 {[%emt 0:0:12]} 17. O-O {[%emt 0:0:24]} exd4 {[%emt 0:0:43]} 18. Bxd4 {[%emt 0:0:1]} Rxb2 {[%emt 0:0:2]} 19. Qxb2 {[%emt 0:0:9]} Bxd4+ {[%emt 0:0:1]} 20. Kh1 {[%emt 0:0:1]} Qf6 {[%emt 0:0:10]} 21. Rac1 {[%emt 0:0:5]} Nc5 {[%emt 0:0:1]} 22. Nxd5 {[%emt 0:0:14]} Qe5 {[%emt 0:0:7]} 23. Ne7+ {[%emt 0:0:1]} Kg7 {[%emt 0:0:7]} 24. Nc6 {[%emt 0:0:2]} Bxb2 {[%emt 0:0:2]} 25. Nxe5 {[%emt 0:0:1]} Bxc1 {[%emt 0:0:1]} 26. Rxc1 {[%emt 0:0:1]} Nd7 {[%emt 0:0:16]} 27. Nc6 {[%emt 0:0:30]} Re8 {[%emt 0:0:11]} 28. Bc4 {[%emt 0:0:6]} Nb6 {[%emt 0:0:8]} 29. Bb3 {[%emt 0:0:3]} Be6 {[%emt 0:0:8]} 30. Re1 {[%emt 0:0:13]} Kf6 {[%emt 0:0:9]} 31. Bxe6 {[%emt 0:0:2]} Rxe6 {[%emt 0:0:3]} 32. Rxe6+ {[%emt 0:0:1]} Kxe6 {[%emt 0:0:1]} 33. Kg1 {[%emt 0:0:1]} Kd5 {[%emt 0:0:0]} 34. Nd8 {[%emt 0:0:2]} f6 {[%emt 0:0:2]} 35. Kf2 {[%emt 0:0:2]} Na4 {[%emt 0:0:4]} 36. Ke3 {[%emt 0:0:7]} Nc3 {[%emt 0:0:5]} 37. a3 {[%emt 0:0:1]} Na4 {[%emt 0:0:0]} 38. h4 {[%emt 0:0:5]} Nb2 {[%emt 0:0:1]} 39. Kf4 {[%emt 0:0:4]} Nd3+ {[%emt 0:0:4]} 40. Kg3 {[%emt 0:0:1]} Nb2 {[%emt 0:0:1] [#]} 41. h5 {[%emt 0:0:5]} (41. Kg4 $1 $16 )Kd6 {[%emt 0:0:4]} (41... gxh5 $11 {keeps the balance.} 42. f4 Kd6 )42. hxg6 {[%emt 0:0:3]} (42. Kh4 $16 )hxg6 $14 {[%emt 0:0:1]} 43. Nb7+ {[%emt 0:0:4]} Kc6 {[%emt 0:0:1]} 44. Na5+ {[%emt 0:0:1]} Kd5 {[%emt 0:0:1]} 45. Nb3 {[%emt 0:0:2]} Na4 {[%emt 0:0:1]} 46. Nd2 {[%emt 0:0:2]} Ke5 {[%emt 0:0:2]} (46... Nb6 $142 )47. Ne4 {[%emt 0:0:4]} ({White should try} 47. f4+ Ke6 48. Nf3 )Nb6 $16 {[%emt 0:0:2]} 48. Kf2 {[%emt 0:0:5]} f5 {[%emt 0:0:2]} (48... Nd5 $16 )49. Ng5 $1 $18 {[%emt 0:0:1]} Kd4 {[%emt 0:0:2] [#]} 50. Kg3 {[%emt 0:0:2]} (50. Nf7 $1 $18 )Ke5 $2 {[%emt 0:0:0]} (50... Nc4 $1 $14 )51. Nh3 {[%emt 0:0:2]} Na4 {[%emt 0:0:5]} 52. Nf4 {[%emt 0:0:4]} (52. Kh4 $18 {And now Kg5 would win.} Kf6 53. g4 )Kf6 {[%emt 0:0:1]} 53. Kf2 {[%emt 0:0:3]} Nb6 {[%emt 0:0:1]} 54. Ke2 {[%emt 0:0:1]} g5 {[%emt 0:0:1]} 55. Nh3 {[%emt 0:0:1]} g4 {[%emt 0:0:1]} 56. fxg4 {[%emt 0:0:1]} fxg4 {[%emt 0:0:1]} 57. Nf2 {[%emt 0:0:1]} Kf5 {[%emt 0:0:0]} 58. g3 {[%emt 0:0:3]} (58. Nd1 $18 )Na4 $2 {[%emt 0:0:1][%mdl 8192]} (58... Nd5 $16 )59. Ke3 $18 {[%emt 0:0:7]} Nc3 {[%emt 0:0:8] [#]} 60. Kd3 $1 {[%emt 0:0:5]} Na4 {[%emt 0:0:1]} 61. Kd4 {[%emt 0:0:1]} Nb6 {[%emt 0:0:3]} 62. Nd1 {[%emt 0:0:2]} Na4 {[%emt 0:0:5]} 63. Nc3 {[%emt 0:0:7]} Nb6 {[%emt 0:0:1]} 64. a4 {[%emt 0:0:1]} Ke6 {[%emt 0:0:2]} 65. a5 {[%emt 0:0:1]} Na8 {[%emt 0:0:1]} 66. Nb5 {[%emt 0:0:5]} Kd7 {[%emt 0:0:0]} 67. Kd5 {[%emt 0:0:1]} Kc8 {[%emt 0:0:2]} 68. Kc6 {[%emt 0:0:1]} Kb8 {[%emt 0:0:1]} 69. a6 {[%emt 0:0:2]} Kc8 {[%emt 0:0:0]} 70. a7 {[%emt 0:0:1]} Kd8 {[%emt 0:0:2]} 71. Kb7 {[%emt 0:0:5]} Kd7 {[%emt 0:0:1]} 72. Kxa8 {[%emt 0:0:1]} Kc8 {[%emt 0:0:0]} 73. Nd4 {[%emt 0:0:2]} 1-0

[Event "Biel Festival Masters Blitz 2024"]
[White "Shankland,Sam"]
[Black "Mishra,Abhimanyu"]
[Site "Biel"]
[Round "5.1"]
[Annotator "TA"]
[Result "1/2-1/2"]
[Date "2024.07.21"]
[WhiteElo "2683"]
[BlackElo "2627"]
[PlyCount "98"]
[TimeControl "180+2"]

{[%evp 27,98,0,9,10,7,7,10,0,0,3,0,0,8,-10,0,-12,-9,-22,0,-14,0,0,0,0,0,-35,-15,-75,0,0,0,-9,0,-3,-5,-6,-3,-3,-2,-114,-124,-119,-71,-66,-56,-85,-90,-82,-71,-71,-71,-123,-71,-156,-122,-114,0,0,0,0,0,0,0,0,101,0,0,0,0,0,0,0,0]} 1. d4 {[%emt 0:0:1]} d5 {[%emt 0:0:0]} 2. Nf3 {[%emt 0:0:1]} Nf6 {[%emt 0:0:1]} 3. Bf4 {[%emt 0:0:1]} c5 {[%emt 0:0:1]} 4. e3 {[%emt 0:0:2]} Nc6 {[%emt 0:0:4]} 5. h3 {[%emt 0:0:1]} cxd4 {[%emt 0:0:10]} 6. exd4 {[%emt 0:0:1] D02: Damenbauernspiele.} Bf5 {[%emt 0:0:2]} 7. c3 {[%emt 0:0:7]} e6 {[%emt 0:0:3]} 8. Nbd2 {[%emt 0:0:4]} Bd6 {[%emt 0:0:5]} 9. Bxd6 {[%emt 0:0:2]} Qxd6 {[%emt 0:0:1]} 10. Be2 {[%emt 0:0:2]} h6 {[%emt 0:0:2]} 11. O-O {[%emt 0:0:14]} O-O {[%emt 0:0:1]} 12. Re1 {[%emt 0:0:2]} Rab8 {[%emt 0:0:17]} 13. a4 {[%emt 0:0:1]} Qc7 {[%emt 0:0:1]} 14. Nb3 $146 {[%emt 0:0:11]} ({Predecessor:} 14. Nf1 Ne4 15. Ne3 Bh7 16. Bd3 Kh8 17. Qe2 a6 18. Rec1 Rfc8 19. Nf1 Na5 20. N1d2 Nxd2 21. Nxd2 Bxd3 22. Qxd3 {½-½ Afanasiev,N (2460)-Kryakvin,D (2592) Voronezh op-A 22nd 2018 (6)} )Na5 {[%emt 0:0:13]} 15. Nxa5 {[%emt 0:0:11]} Qxa5 {[%emt 0:0:2]} 16. Ne5 {[%emt 0:0:1]} Qc7 {[%emt 0:0:10]} 17. Bd3 {[%emt 0:0:22]} Bxd3 {[%emt 0:0:4]} 18. Qxd3 {[%emt 0:0:4]} Nd7 {[%emt 0:0:2]} 19. Ng4 {[%emt 0:0:14]} a6 {[%emt 0:0:35]} 20. a5 {[%emt 0:0:22]} b5 {[%emt 0:0:13]} 21. axb6 {[%emt 0:0:6]} Rxb6 {[%emt 0:0:4]} 22. b4 {[%emt 0:0:10]} Rc8 {[%emt 0:0:11]} 23. Re3 {[%emt 0:0:17]} Qc4 {[%emt 0:0:44]} 24. Qd2 {[%emt 0:0:13]} h5 {[%emt 0:0:12]} 25. Nh2 {[%emt 0:0:26]} Nf6 {[%emt 0:0:1]} 26. Ra3 {[%emt 0:0:2]} Ne4 {[%emt 0:0:5]} 27. Qe1 {[%emt 0:0:2]} (27. Qd1 $11 {bleibt in der Remisbreite.} )Ra8 {[%emt 0:0:13]} (27... Qc7 $17 {...Rc6 wäre nun fies.} 28. Nf3 Rc6 )28. Nf3 $11 {[%emt 0:0:3]} a5 {[%emt 0:0:1]} 29. bxa5 {[%emt 0:0:8]} ({Viel schlechter ist} 29. Rxa5 Rxa5 30. bxa5 Rb2 31. Rxe4 (31. Ne5 $2 Qa2 $19 )dxe4 32. Qxe4 Qd5 $19 (32... Qxc3 $2 33. Qa8+ Kh7 34. Qe4+ g6 35. Ng5+ Kg8 36. Nxe6 $19 ))Rba6 {[%emt 0:0:1]} 30. Ne5 {[%emt 0:0:1]} Qc7 {[%emt 0:0:2]} 31. c4 {[%emt 0:0:3]} Rxa5 {[%emt 0:0:4]} 32. Rxa5 {[%emt 0:0:4]} Qxa5 {[%emt 0:0:2]} 33. Rxe4 {[%emt 0:0:12]} (33. cxd5 $11 Qxe1+ 34. Rxe1 exd5 35. Rb1 )dxe4 $17 {[%emt 0:0:3]} 34. Qxe4 {[%emt 0:0:0]} Rc8 {[%emt 0:0:7]} (34... Qd8 $142 35. Kh2 Qb8 )35. c5 {[%emt 0:0:6]} Qc7 {[%emt 0:0:4]} 36. Qf3 {[%emt 0:0:4]} Rd8 {[%emt 0:0:3]} 37. Qe4 {[%emt 0:0:5]} Rd5 {[%emt 0:0:2]} 38. h4 {[%emt 0:0:3]} Qd8 {[%emt 0:0:2]} 39. Nf3 {[%emt 0:0:1]} (39. Qf3 $142 Qe8 (39... Qxh4 $2 {zu gefräßig.} 40. Qxf7+ Kh7 41. Qg6+ Kh8 42. Nf7+ Kg8 43. Qxe6 $18 )40. c6 )Qf6 {[%emt 0:0:3]} (39... Qa8 $142 40. g3 Qa1+ 41. Kg2 Qa4 )40. g3 {[%emt 0:0:2] [#]} (40. Ne5 $142 )Qf5 $1 $17 {[%emt 0:0:2]} 41. Qxf5 {[%emt 0:0:5]} exf5 {[%emt 0:0:4]} (41... Rxf5 $17 42. Ne5 f6 )42. Kf1 $11 {[%emt 0:0:1]} f6 {[%emt 0:0:4]} 43. Ke2 {[%emt 0:0:1]} Kf7 {[%emt 0:0:2]} 44. Kd3 {[%emt 0:0:1]} Ke6 {[%emt 0:0:4]} 45. Kc4 {[%emt 0:0:1]} Rd8 {[%emt 0:0:0] [#]} (45... f4 $1 $11 )46. d5+ {[%emt 0:0:7]} ({Der einzige Zug:} 46. Nd2 $1 $16 {[%mdl 512]} )Rxd5 $11 {[%emt 0:0:2]} 47. Nd4+ {[%emt 0:0:0]} Ke5 {[%emt 0:0:1]} 48. Nc6+ {[%emt 0:0:4]} Ke6 {[%emt 0:0:2]} 49. Nd4+ $1 {[%emt 0:0:2]} Ke5 {[%emt 0:0:1]} 1/2-1/2